bitfinex/quotes_ETHUSD_20241204
["timestamp","ask_amount","ask_price","bid_price","bid_amount"]
[1733332159273,0.03305873,3781.5,3779.4,2.64588]
[1733332159274,1.5418,3780.7,3779.4,2.64588]
[1733332159500,1.5418,3780.2,3778.8,2.64627]
[1733332159781,0.03306733,3780.6,3777.4,0.9749]
[1733332159782,1.5418,3779.6,3777.9,0.52356436]
[1733332159983,1.5418,3779.6,3777.4,0.9749]
[1733332160290,1.5418,3779.6,3778.2,2.64669]
[1733332160496,1.5418,3779.6,3777.5,2.64725]
[1733332160642,1.5418,3779.6,3777.6,0.41323722]
[1733332160843,1.5418,3779.6,3777.7,0.9749]
[1733332161043,1.5418,3779.6,3779.5,2.64585]
[1733332161303,1.6537,3780.6,3779.5,2.64585]
[1733332161448,1.6537,3780.6,3779.1,0.55]
[1733332161774,1.6537,3780.6,3779.3,0.55]
[1733332161958,1.6537,3780.6,3779.2,0.619621]
[1733332161959,1.6537,3780.6,3779.2,3.265671]
[1733332162287,1.6537,3780.6,3778.8,0.55]
[1733332162597,1.524,3780.4,3778.3,2.64669]
[1733332162745,1.524,3780.1,3778.6,2.64646]
[1733332162947,1.524,3780.1,3779.1,2.64612]
[1733332163350,1.524,3780.1,3777.9,0.5080527]
[1733332163351,1.524,3780.1,3777.9,3.1550027]
[1733332163585,1.524,3780.1,3777.3,0.3646]
[1733332163586,0.52297163,3779.9,3779.0,2.64617]
[1733332163794,0.52297163,3779.9,3778.3,2.64669]
[1733332163975,0.52297163,3779.9,3779.0,2.64614]
[1733332164179,0.52297163,3779.9,3778.0,0.31550027]
[1733332164180,2.64577,3779.7,3778.0,2.96237027]
[1733332164359,0.52297163,3779.9,3778.0,2.96237027]
[1733332164360,1.524,3779.5,3778.3,2.64666]
[1733332164546,1.524,3779.5,3778.6,2.64647]
[1733332164746,1.524,3779.5,3778.3,3.20757303]
[1733332164995,1.524,3779.5,3778.5,2.64648]
[1733332165294,0.52297163,3779.9,3778.0,0.31550027]
[1733332165295,1.524,3779.3,3778.0,0.31550027]
[1733332165457,1.524,3779.3,3778.5,2.64654]
[1733332165659,1.524,3779.3,3778.1,2.64682]
[1733332165979,1.524,3779.3,3778.5,2.64653]
[1733332167001,1.524,3779.3,3778.2,0.29623203]
[1733332167240,1.514,3779.2,3777.8,2.64697]
[1733332167502,2.64649,3778.6,3777.5,2.64725]
[1733332167658,1.6165,3778.5,3776.7,2.6478]
[1733332167862,1.6165,3778.5,3776.6,0.9749]
[1733332167863,1.6165,3778.5,3777.6,2.64717]
[1733332168267,1.6165,3778.5,3777.7,2.64708]
[1733332168673,1.6165,3778.5,3776.8,2.64774]
[1733332168875,1.6165,3778.5,3777.6,2.64714]
[1733332169103,1.6165,3778.5,3776.9,0.362264]
[1733332169479,1.592,3778.1,3776.1,1.49561669]
[1733332169804,1.592,3777.7,3775.6,0.9749]
[1733332169960,1.5726,3777.3,3775.6,1.46436654]
[1733332170163,1.5726,3777.3,3776.4,2.64795]
[1733332170660,1.5726,3777.1,3775.3,2.64879]
[1733332170878,0.5574642,3777.2,3774.7,2.64916]
[1733332170879,1.5726,3776.9,3775.4,0.362369]
[1733332171100,1.5726,3776.7,3775.0,0.49643886]
[1733332171319,1.5726,3776.7,3775.7,2.64847]
[1733332171491,1.5726,3776.7,3774.6,1.2515491]
[1733332171695,1.5726,3776.7,3774.6,1.58588542]
[1733332171873,1.5726,3776.7,3776.6,2.64788]
[1733332172564,1.5726,3776.7,3776.4,2.648]
[1733332172768,1.5726,3776.7,3776.6,2.64788]
[1733332173460,1.5726,3776.7,3776.5,2.64794]
[1733332173690,1.5726,3776.7,3775.7,2.64851]
[1733332173691,1.5726,3776.7,3775.8,3.55]
[1733332173876,1.5726,3776.7,3776.4,2.64801]
[1733332174089,1.5726,3776.7,3776.0,0.55]
[1733332174295,1.5726,3776.7,3776.6,2.64788]
[1733332174708,1.6535,3777.6,3776.6,2.64788]
[1733332174893,1.6535,3777.6,3776.4,0.55]
[1733332175088,1.6535,3777.6,3776.7,2.6478]
[1733332175301,1.6535,3777.6,3776.4,0.319809]
[1733332175875,1.6535,3777.6,3776.6,2.64788]
[1733332176116,1.54962974,3777.6,3776.9,2.64762]
[1733332176815,1.54962974,3777.6,3776.4,2.967769]
[1733332177023,1.54962974,3777.6,3776.1,2.64821]
[1733332177206,0.51727288,3777.7,3775.7,2.64844]
[1733332177207,2.64768,3776.9,3775.7,2.64844]
[1733332177376,2.64768,3776.9,3774.5,2.64934]
[1733332177377,0.03309912,3776.8,3775.1,0.4898149]
[1733332177702,0.53422397,3776.4,3774.9,2.64907]
[1733332177902,0.53422397,3776.4,3775.8,2.64839]
[1733332178105,0.53422397,3776.4,3775.0,0.372777]
[1733332178312,0.53422397,3776.4,3775.6,2.64857]
[1733332178492,0.53422397,3776.4,3775.7,2.6485]
[1733332178816,2.64742,3777.3,3775.6,2.64858]
[1733332178990,11.79,3777.9,3774.8,2.64914]
[1733332178991,2.64766,3777.0,3774.8,2.64914]
[1733332179176,1.6644,3776.6,3775.4,2.64866]
[1733332179382,1.6644,3776.4,3774.9,3.0]
[1733332179579,1.6644,3776.4,3775.9,2.64835]
[1733332179983,2.19624611,3776.4,3774.9,3.0]
[1733332180178,2.19624611,3776.4,3776.3,2.64809]
[1733332180179,1.6644,3776.4,3776.3,2.64809]
[1733332180808,1.6644,3776.4,3775.7,2.64847]
[1733332181008,1.6644,3776.4,3775.7,2.913317]
[1733332181204,1.6644,3776.4,3776.3,2.64809]
[1733332182232,1.5295,3776.9,3775.8,0.55]
[1733332182431,1.5295,3776.9,3776.8,2.64774]
[1733332183108,1.592,3777.4,3777.3,2.64739]
[1733332183320,1.592,3778.8,3777.8,2.64704]
[1733332183621,1.592,3778.8,3776.7,2.64776]
[1733332183622,1.6169,3778.1,3776.3,2.64806]
[1733332183840,1.64998336,3778.1,3776.5,2.64795]
[1733332184043,1.64998336,3778.1,3776.2,2.64809]
[1733332184044,1.6169,3777.4,3776.2,2.64809]
[1733332184243,1.6169,3777.4,3776.5,2.64793]
[1733332184442,4.22728,3777.2,3776.0,2.64829]
[1733332184658,1.5798,3777.2,3776.3,2.64809]
[1733332184837,0.54244382,3777.0,3776.1,2.64823]
[1733332185050,0.54244382,3777.0,3775.9,2.64837]
[1733332185216,0.54244382,3777.0,3776.2,2.64809]
[1733332185420,1.66029804,3776.9,3774.9,1.0787]
[1733332185721,1.66029804,3776.9,3775.7,2.64847]
[1733332185921,4.27487,3776.9,3775.2,2.64884]
[1733332186120,1.66030182,3776.9,3775.9,2.64836]
[1733332186350,1.66030182,3776.9,3774.9,1.0787]
[1733332186553,0.51687153,3776.4,3775.0,5.298]
[1733332186761,0.51687153,3776.4,3775.9,2.64836]
[1733332186922,1.6272,3776.7,3775.3,3.19879]
[1733332187140,1.6272,3776.7,3776.2,2.64809]
[1733332187334,1.6272,3776.7,3775.1,0.55]
[1733332187563,1.6272,3776.7,3775.3,2.64879]
[1733332187770,1.6272,3776.7,3776.2,2.64813]
[1733332187948,1.6272,3776.7,3776.5,2.64794]
[1733332188133,1.6272,3776.7,3775.5,0.55]
[1733332188334,1.6272,3776.7,3775.8,2.64841]
[1733332188564,1.6272,3776.7,3775.5,0.55]
[1733332188565,0.03309908,3776.6,3775.5,2.6486]
[1733332188771,1.6272,3776.5,3775.5,2.6486]
[1733332188972,1.6272,3776.5,3774.9,0.49741378]
[1733332189265,1.6272,3776.5,3774.5,1.0787]
[1733332189524,1.6272,3776.5,3775.8,2.64837]
[1733332189659,1.6272,3776.5,3775.9,2.64835]
[1733332189875,1.6272,3776.5,3776.2,2.64815]
[1733332190233,1.6272,3776.5,3774.5,1.57275152]
[1733332190234,1.6272,3776.5,3776.4,2.64802]
[1733332190574,1.6272,3776.5,3775.4,0.55]
[1733332190575,1.6272,3776.5,3776.2,0.264815]
[1733332190736,1.6272,3776.5,3776.2,2.64811]
[1733332190932,1.6272,3776.5,3776.1,2.64823]
[1733332191357,1.6272,3776.5,3775.8,2.64838]
[1733332191541,0.0330999,3776.4,3775.5,2.64858]
[1733332191851,0.0330999,3776.4,3774.5,3.72801]
[1733332192333,1.6487,3775.7,3774.7,2.6492]
[1733332192532,1.68181198,3775.7,3774.7,2.6492]
[1733332192786,8.82311198,3775.7,3773.9,2.64972]
[1733332193079,8.82311198,3775.7,3773.0,2.65035]
[1733332193080,1.5319,3775.0,3773.6,2.64993]
[1733332193282,1.20003136,3775.6,3773.3,2.65014]
[1733332193283,2.64929,3774.6,3773.3,2.65014]
[1733332193447,1.56502183,3774.5,3773.1,2.6503]
[1733332193649,1.56502183,3774.5,3773.4,2.65009]
[1733332193650,0.5365966,3774.3,3773.4,2.65009]
[1733332194689,1.6657,3774.2,3773.4,2.65012]
[1733332194978,1.6657,3774.2,3773.3,2.65015]
[1733332195185,1.6657,3774.2,3773.5,2.65005]
[1733332195341,1.6657,3774.2,3773.3,2.65017]
[1733332195539,1.6657,3774.2,3773.1,0.55]
[1733332195540,1.6657,3774.2,3773.2,2.65027]
[1733332195748,1.6657,3774.2,3773.2,3.235288]
[1733332196178,1.6657,3774.2,3773.7,2.64988]
[1733332196361,1.5707,3774.0,3772.8,0.1609075]
[1733332196560,1.6549,3773.8,3772.8,0.1609075]
[1733332196778,1.6549,3773.6,3772.8,0.1609075]
[1733332196961,2.6494,3774.5,3768.8,4.53706439]
[1733332196962,3.83724817,3772.9,3771.2,1.060725]
[1733332197169,3.83724817,3772.9,3771.4,2.70125145]
[1733332197170,1.5379,3772.7,3771.4,2.70125145]
[1733332197352,1.5379,3772.5,3771.4,0.04972145]
[1733332197554,1.5379,3772.5,3771.4,2.70123145]
[1733332197786,1.5379,3772.5,3771.8,2.65123]
[1733332198297,1.5379,3772.5,3771.8,2.65122]
[1733332198494,1.5379,3772.5,3771.5,0.27012315]
[1733332198796,1.5379,3772.5,3771.7,2.6513]
[1733332198997,1.5379,3772.5,3772.3,2.65084]
[1733332199171,1.5116,3773.1,3772.7,2.65061]
[1733332199369,1.5116,3773.6,3772.6,3.0]
[1733332199554,1.5116,3773.6,3773.4,2.65012]
[1733332200199,1.5116,3773.6,3772.7,2.65059]
[1733332200349,1.5116,3773.6,3772.7,1.470059]
[1733332200553,1.5116,3773.6,3772.5,0.55]
[1733332201005,1.5116,3773.6,3772.8,2.65052]
[1733332201410,1.5116,3773.6,3773.0,2.65039]
[1733332201613,1.5116,3773.6,3772.8,2.65054]
[1733332201916,1.5116,3773.6,3773.4,2.65011]
[1733332202062,1.5189,3774.1,3773.5,0.55]
[1733332202485,1.5189,3774.1,3772.1,2.65099]
[1733332202486,4.0401,3773.7,3770.5,2.65213]
[1733332202779,1.6365,3773.5,3770.5,2.65213]
[1733332203108,1.6365,3773.1,3770.8,2.65189]
[1733332203402,1.6365,3772.9,3771.8,2.65121]
[1733332203715,1.6365,3772.9,3771.5,2.65144]
[1733332204006,1.6365,3772.9,3771.3,1.522]
[1733332204190,1.6365,3772.9,3772.5,2.65071]
[1733332204191,2.17414323,3772.9,3772.5,2.65071]
[1733332204374,2.17414323,3772.9,3771.3,1.522]
[1733332204375,1.6365,3772.9,3771.7,2.65125]
[1733332204574,1.6365,3772.9,3772.5,2.65075]
[1733332205117,1.6365,3772.9,3772.3,2.65087]
[1733332205411,1.6365,3772.9,3772.5,2.65072]
[1733332205622,1.6365,3772.9,3771.8,0.265125]
[1733332205762,1.6365,3772.9,3772.4,2.65079]
[1733332205963,1.6365,3772.9,3772.5,2.65075]
[1733332206186,1.6365,3772.9,3771.8,0.265125]
[1733332206393,1.6365,3772.9,3772.5,2.65075]
[1733332206801,1.6365,3772.9,3771.9,0.2916415]
[1733332207022,1.6365,3772.9,3772.5,2.65075]
[1733332207210,1.6365,3772.9,3771.4,3.56320933]
[1733332207410,0.51775213,3773.2,3772.7,2.65056]
[1733332207623,1.6417,3773.4,3773.0,2.65039]
[1733332207787,1.6417,3773.4,3771.5,0.55]
[1733332207968,1.6417,3773.4,3771.8,2.65119]
[1733332208167,1.6417,3773.4,3771.9,2.65118]
[1733332208593,1.6417,3773.4,3773.3,2.6502]
[1733332209141,1.6417,3773.4,3772.3,1.6627]
[1733332209142,1.6417,3773.9,3772.3,1.6627]
[1733332209341,1.6417,3773.9,3773.3,2.65019]
[1733332209539,1.6417,3773.9,3772.4,2.65083]
[1733332209693,1.6417,3773.9,3772.6,2.65069]
[1733332209894,1.6417,3773.9,3773.2,2.65026]
[1733332210205,1.565,3773.7,3772.5,2.65075]
[1733332210399,0.51934342,3774.1,3772.3,2.6509]
[1733332210400,1.565,3773.5,3772.3,2.6509]
[1733332210601,1.565,3773.5,3772.1,0.50690406]
[1733332210934,1.7215,3773.5,3772.6,2.65066]
[1733332211143,0.03313021,3773.4,3771.4,2.70123145]
[1733332211295,0.03313022,3773.4,3771.8,2.65119]
[1733332211500,1.565,3773.3,3771.6,1.06082492]
[1733332211696,0.53721307,3773.2,3771.6,1.06082492]
[1733332211926,1.565,3773.3,3773.2,2.65027]
[1733332212237,0.517224,3773.9,3772.4,2.64883]
[1733332212396,0.517224,3773.9,3773.8,2.64984]
[1733332213055,1.6474,3774.9,3774.7,2.64919]
[1733332213345,1.6474,3774.9,3773.4,1.5926]
[1733332213495,1.6474,3774.9,3774.4,2.64941]
[1733332213896,1.6474,3774.9,3774.7,2.6492]
[1733332214096,1.6474,3774.9,3774.5,2.64933]
[1733332214293,1.6474,3774.9,3774.5,2.64935]
[1733332214694,1.6474,3774.9,3773.7,2.64991]
[1733332214900,1.6474,3774.9,3773.7,0.5197165]
[1733332215127,1.6474,3774.9,3773.8,2.64984]
[1733332215326,1.6474,3774.9,3774.6,2.64926]
[1733332215647,1.6474,3774.9,3773.7,0.5197165]
[1733332215648,1.5835,3775.5,3773.7,0.5197165]
[1733332215941,3.34356852,3777.3,3775.6,2.64854]
[1733332215942,8.79,3776.9,3775.6,2.64854]
[1733332216108,8.79,3776.9,3774.4,1.5526]
[1733332216109,1.0455,3776.8,3774.4,1.5526]
[1733332216523,4.34598341,3776.7,3774.7,2.64917]
[1733332216723,1.665,3776.7,3774.4,4.5526]
[1733332216938,1.665,3776.7,3774.5,0.55]
[1733332217154,1.665,3776.7,3776.0,2.64825]
[1733332217310,1.665,3776.7,3774.9,2.64902]
[1733332217653,1.665,3776.5,3774.5,0.50409806]
[1733332217797,1.665,3776.1,3775.0,2.64897]
[1733332217998,1.665,3776.1,3773.8,1.5526]
[1733332217999,1.665,3775.9,3773.9,2.64977]
[1733332218245,1.665,3775.6,3774.4,2.64935]
[1733332218402,0.03311364,3775.5,3774.4,2.64935]
[1733332218739,1.665,3775.2,3773.3,1.5526]
[1733332218946,1.665,3775.2,3774.0,2.6497]
[1733332218947,2.68204779,3775.1,3774.0,2.6497]
[1733332219299,0.52879685,3774.5,3773.1,2.65028]
[1733332219522,1.665,3774.3,3773.5,2.65001]
[1733332219903,1.665,3774.3,3773.9,2.64974]
[1733332220141,1.665,3774.3,3772.3,1.5526]
[1733332220142,1.665,3774.3,3772.7,0.51258422]
[1733332220343,1.88437969,3774.3,3773.6,2.64998]
[1733332220697,1.88437969,3774.3,3772.8,0.31633442]
[1733332220698,0.03312314,3774.2,3772.8,0.31633442]
[1733332220908,0.03312314,3774.2,3773.6,2.64998]
[1733332221112,1.88437969,3774.3,3772.4,3.1529095]
[1733332221307,1.88437969,3774.3,3773.0,2.6504]
[1733332221627,3.19984,3773.8,3771.7,2.65132]
[1733332221801,2.68304904,3773.7,3772.5,2.65073]
[1733332222144,1.8838049,3773.6,3771.8,0.06060009]
[1733332222315,1.5605,3773.1,3772.1,2.65103]
[1733332222505,0.0331343,3773.0,3771.8,0.06060009]
[1733332222932,0.55,3772.8,3771.8,0.06060009]
[1733332223144,1.545,3772.5,3771.8,0.06060009]
[1733332223343,0.54595801,3772.4,3771.8,0.06060009]
[1733332223644,2.65107,3772.1,3771.8,0.06060009]
[1733332223848,0.03314605,3772.0,3771.8,0.06060009]
[1733332224138,4.19608602,3772.1,3771.8,0.06060009]
[1733332224365,0.0331461,3772.0,3771.8,0.06060009]
[1733332224500,0.15450461,3771.9,3771.8,0.06060009]
[1733332224702,0.67813587,3771.9,3771.8,0.06060009]
[1733332225249,1.5119,3772.1,3771.8,0.06060009]
[1733332225833,1.5943,3773.4,3772.4,2.65082]
[1733332226203,1.5943,3773.4,3772.5,2.65076]
[1733332226406,0.52835009,3773.1,3771.4,3.04972145]
[1733332226611,1.5943,3773.4,3771.9,3.0]
[1733332226927,1.74137806,3775.6,3773.2,2.65024]
[1733332226928,1.5943,3774.9,3773.2,2.65024]
[1733332227132,1.5943,3774.9,3772.3,2.65089]
[1733332227133,0.03312288,3774.8,3772.4,3.0]
[1733332227354,1.5943,3774.9,3773.1,2.65034]
[1733332227670,2.68230691,3774.8,3773.0,3.0]
[1733332227834,1.5943,3774.9,3772.6,1.646]
[1733332227835,1.5943,3774.9,3773.9,2.64976]
[1733332228036,0.15943,3774.8,3773.9,2.64976]
[1733332228278,0.15943,3774.8,3772.8,3.55]
[1733332228279,0.53322799,3774.5,3772.8,3.55]
[1733332228573,1.5943,3774.9,3773.2,3.0]
[1733332228741,1.5943,3774.9,3773.1,2.65034]
[1733332228928,1.5943,3774.9,3773.6,2.64998]
[1733332229134,1.5943,3774.9,3773.7,0.264998]
[1733332229324,0.03311509,3774.8,3773.2,3.0]
[1733332229527,1.5943,3774.9,3774.3,2.64943]
[1733332229762,1.5943,3774.9,3774.8,2.64914]
[1733332230281,1.5943,3774.9,3773.6,3.0]
[1733332230426,1.5943,3774.9,3773.6,2.64998]
[1733332230769,1.5943,3774.9,3774.8,2.64914]
[1733332230987,2.04716479,3775.4,3774.8,2.64914]
[1733332231293,1.5245,3776.0,3774.6,3.0]
[1733332231436,1.5245,3776.0,3775.9,2.64837]
[1733332231639,1.5245,3777.6,3775.9,2.64837]
[1733332231879,1.5245,3777.6,3776.3,2.64805]
[1733332231880,0.53496404,3777.0,3776.3,2.64805]
[1733332232087,1.5245,3776.8,3775.2,3.0]
[1733332232381,2.68091188,3776.7,3774.9,2.64905]
[1733332232584,0.03310188,3776.7,3774.6,3.0]
[1733332232734,1.5576047,3776.8,3774.9,2.64902]
[1733332232936,1.5245,3776.3,3774.7,2.64921]
[1733332233174,1.5245,3776.3,3774.6,3.0]
[1733332233175,0.03310778,3776.2,3774.8,2.64914]
[1733332233377,0.03310778,3776.2,3774.6,3.0]
[1733332233579,1.5245,3776.3,3774.8,3.0]
[1733332233785,4.71366064,3776.3,3775.1,2.64889]
[1733332233941,0.504472,3776.2,3775.1,2.64889]
[1733332234293,0.504472,3776.2,3775.0,2.649]
[1733332234440,0.47136606,3776.2,3774.0,2.6497]
[1733332234748,0.03311029,3776.1,3774.1,3.0]
[1733332234948,0.03311031,3776.2,3775.0,2.64894]
[1733332235152,0.42056403,3776.1,3775.0,2.64894]
[1733332235354,1.5245,3776.3,3774.3,3.0]
[1733332235355,1.5245,3776.3,3774.9,2.64903]
[1733332235679,1.5245,3777.3,3775.7,2.6485]
[1733332235887,1.5245,3777.3,3777.2,2.64746]
[1733332236457,1.5245,3778.0,3776.6,0.55]
[1733332236769,1.5458,3779.0,3777.1,2.64749]
[1733332236942,0.72673677,3778.9,3777.1,0.264749]
[1733332237142,0.69365726,3778.9,3777.3,2.64739]
[1733332237345,0.69365726,3778.9,3777.2,3.19746]
[1733332237575,0.69365726,3778.9,3777.2,0.55]
[1733332237895,0.69365726,3778.9,3777.5,2.64725]
[1733332238042,0.69365726,3778.9,3777.7,2.64704]
[1733332238043,0.25702702,3778.8,3777.7,2.64704]
[1733332238247,0.25702702,3778.8,3777.7,2.6471]
[1733332238481,0.25702702,3778.8,3777.5,2.64722]
[1733332238786,0.25702702,3778.8,3777.3,3.0]
[1733332238991,0.25702702,3778.8,3776.9,2.64763]
[1733332238992,1.5458,3778.7,3776.7,3.0]
[1733332239194,1.5458,3778.2,3776.3,3.0]
[1733332239347,8.79,3778.8,3776.3,3.0]
[1733332239348,4.19287,3777.8,3776.3,2.64807]
[1733332239719,0.52128242,3777.5,3776.3,2.64807]
[1733332239861,0.03309546,3777.4,3776.4,2.64801]
[1733332240047,0.03309546,3777.4,3775.6,2.64858]
[1733332240396,0.03309546,3777.4,3774.9,0.1]
[1733332240397,1.5458,3776.8,3775.4,2.64871]
[1733332240596,1.5458,3776.8,3776.1,2.6482]
[1733332240597,0.15458,3776.7,3776.1,2.6482]
[1733332240884,0.15458,3776.7,3774.8,1.6165]
[1733332240885,0.15458,3776.7,3775.1,2.64893]
[1733332241085,0.18768056,3776.7,3774.8,1.6165]
[1733332241387,0.18768056,3776.7,3774.3,1.6165]
[1733332241388,0.15458,3776.7,3774.3,1.6165]
[1733332241687,0.15458,3776.7,3775.8,2.6484]
[1733332241858,0.15458,3776.7,3774.9,2.64905]
[1733332241859,0.170038,3776.6,3775.9,2.64835]
[1733332242195,0.170038,3776.6,3775.6,2.64855]
[1733332242408,0.170038,3776.6,3775.8,2.64841]
[1733332242559,0.170038,3776.6,3775.0,3.0]
[1733332242763,0.170038,3776.6,3775.6,2.64854]
[1733332242961,1.5458,3776.4,3774.9,3.0]
[1733332243164,1.5458,3776.4,3775.0,2.649]
[1733332243477,1.5458,3776.4,3775.3,2.64873]
[1733332243670,1.5458,3776.4,3775.7,2.64845]
[1733332244078,1.5458,3776.4,3775.1,3.0]
[1733332244264,1.5458,3776.4,3774.9,0.5092402]
[1733332244265,1.5458,3776.9,3776.8,2.64774]
[1733332244577,2.64638,3778.8,3776.8,2.64774]
[1733332244578,1.5458,3778.0,3777.2,2.64746]
[1733332244779,1.5458,3778.0,3776.3,0.50216324]
[1733332245122,1.5458,3778.0,3775.9,2.64837]
[1733332245123,1.5458,3778.0,3777.0,2.64757]
[1733332245401,1.5458,3778.0,3776.6,3.0]
[1733332245561,1.75412037,3778.0,3777.4,2.64731]
[1733332245760,1.75412037,3778.0,3776.6,3.0]
[1733332246162,1.5458,3778.0,3777.5,2.64719]
[1733332246494,0.0330864,3777.9,3776.9,2.64767]
[1733332246696,1.5458,3778.0,3777.1,2.64752]
[1733332246897,1.5458,3778.0,3776.6,2.64788]
[1733332246898,1.5458,3778.0,3777.2,2.64746]
[1733332247205,1.5458,3778.0,3777.1,2.64752]
[1733332247404,1.5458,3778.0,3776.7,3.0]
[1733332247405,0.15458,3777.9,3776.8,2.64767]
[1733332247588,0.15458,3777.9,3775.6,2.64853]
[1733332247589,0.0330893,3777.8,3775.9,1.547]
[1733332247791,0.15458,3777.9,3775.9,1.547]
[1733332247977,1.5458,3778.0,3776.0,3.55]
[1733332248181,1.5458,3778.0,3776.7,0.55]
[1733332248565,1.5458,3778.0,3777.9,2.64697]
[1733332248762,1.5829,3778.6,3777.9,2.64697]
[1733332248966,1.5829,3778.6,3778.5,2.64655]
[1733332249269,1.5829,3778.6,3777.1,0.55]
[1733332249270,1.5829,3778.6,3778.0,2.64685]
[1733332249578,1.5829,3778.6,3778.0,2.64689]
[1733332249801,1.5829,3778.6,3778.4,2.64661]
[1733332250002,0.5200108,3779.3,3777.9,3.0]
[1733332250003,1.5829,3779.2,3777.9,3.0]
[1733332250231,1.5829,3779.2,3779.0,2.6462]
[1733332250622,1.5829,3779.2,3778.0,0.3]
[1733332250623,1.5829,3780.4,3778.6,2.64644]
[1733332250822,0.03307283,3780.3,3778.3,0.55]
[1733332251137,1.5829,3780.4,3778.0,0.3]
[1733332251138,1.5829,3780.4,3780.0,2.64547]
[1733332251633,1.5829,3780.4,3779.2,2.64606]
[1733332251790,1.5829,3780.4,3779.2,0.564606]
[1733332251991,1.5829,3780.4,3779.3,0.55]
[1733332252191,2.0357273,3780.9,3779.6,2.64578]
[1733332252430,2.0357273,3780.9,3779.7,0.55]
[1733332252431,1.519,3780.9,3779.7,0.55]
[1733332252636,1.519,3780.9,3780.6,2.64507]
[1733332252801,2.6438,3782.5,3779.7,0.55]
[1733332252802,0.51773353,3781.2,3779.9,0.55]
[1733332253002,0.51773353,3781.2,3780.6,2.64506]
[1733332253203,1.519,3782.1,3780.1,0.55]
[1733332253423,1.519,3782.1,3781.4,2.6445]
[1733332253748,0.53499838,3782.0,3780.1,0.55]
[1733332254100,0.53499838,3782.0,3781.2,2.64462]
[1733332254406,0.20539984,3781.9,3780.4,3.0]
[1733332254606,0.20539984,3781.9,3781.2,2.64463]
[1733332254907,0.03305468,3781.8,3780.7,2.645]
[1733332255123,1.5701,3781.7,3780.2,2.64536]
[1733332255296,1.5701,3781.7,3779.8,1.5389]
[1733332255496,0.21060938,3781.6,3780.1,2.6454]
[1733332255727,1.5701,3781.4,3779.8,5.64557]
[1733332255893,0.03306466,3781.3,3779.3,2.64595]
[1733332256098,1.5417,3780.6,3779.4,2.64587]
[1733332256439,1.5417,3780.6,3779.0,2.6462]
[1733332256440,0.03306649,3780.5,3779.0,2.6462]
[1733332256598,2.8549637,3780.4,3778.9,2.64621]
[1733332256941,2.8549637,3780.4,3777.6,0.2]
[1733332256942,1.5417,3780.2,3778.2,1.6274]
[1733332257092,1.5417,3779.8,3778.0,2.64683]
[1733332257337,2.6453,3780.3,3777.4,2.64732]
[1733332257338,1.5417,3779.4,3777.4,2.64732]
[1733332257533,0.03307786,3779.3,3777.3,1.6274]
[1733332257846,4.18783,3779.1,3776.8,1.6274]
[1733332258073,2.64622,3779.0,3777.6,2.64716]
[1733332258271,1.5417,3779.1,3777.9,2.64695]
[1733332259067,4.18783,3779.1,3776.9,0.06051826]
[1733332259250,1.5417,3779.1,3777.7,2.64706]
[1733332259453,0.17860934,3779.0,3777.3,2.64737]
[1733332259655,0.17860934,3779.0,3776.9,2.70815826]
[1733332259656,1.579,3778.9,3776.9,2.70815826]
[1733332259955,2.64641,3778.7,3777.4,2.64729]
[1733332260148,1.579,3778.9,3777.1,2.64753]
[1733332260348,0.53211766,3778.8,3778.4,2.64661]
[1733332260697,1.579,3778.9,3776.9,3.19767]
[1733332260898,1.579,3778.9,3776.8,2.12851342]
[1733332260899,1.579,3778.9,3778.6,2.64647]
[1733332261176,1.579,3778.9,3777.9,0.55]
[1733332261384,1.579,3778.9,3778.0,2.64688]
[1733332261588,1.579,3778.9,3777.6,2.64718]
[1733332261739,1.579,3778.9,3777.7,5.64708]
[1733332261936,2.001515,3778.9,3777.3,4.28714]
[1733332262175,1.5233,3778.4,3776.7,2.64781]
[1733332262385,0.03308871,3778.3,3776.3,1.637]
[1733332262692,1.5233,3778.4,3776.7,2.64775]
[1733332262886,1.5233,3778.4,3777.3,1.637]
[1733332263196,5.97535,3780.3,3778.8,2.64634]
[1733332263197,1.5233,3778.9,3778.8,2.64634]
[1733332263638,1.5233,3778.9,3777.4,2.64732]
[1733332263639,1.5233,3778.9,3777.5,3.0]
[1733332263839,1.5233,3778.9,3777.9,2.64695]
[1733332264035,1.5233,3778.9,3777.3,0.48918145]
[1733332264036,0.03307875,3778.8,3777.3,0.48918145]
[1733332264368,0.03307875,3778.8,3776.5,2.64795]
[1733332264369,1.5233,3778.2,3776.5,2.64795]
[1733332264554,1.5233,3778.2,3776.4,0.51856322]
[1733332264755,1.6605,3779.1,3776.5,1.7168]
[1733332264985,1.6605,3779.1,3778.2,2.64675]
[1733332265187,1.6605,3779.1,3778.2,2.64673]
[1733332265501,1.6605,3779.1,3777.8,2.647]
[1733332265686,1.6605,3778.6,3777.2,2.64739]
[1733332266025,1.6605,3778.6,3777.1,3.0]
[1733332266026,1.6605,3778.2,3776.6,0.23353632]
[1733332266175,0.430719,3778.1,3776.7,0.43983163]
[1733332266377,0.430719,3778.1,3775.8,2.64841]
[1733332266378,0.03308956,3778.0,3775.3,1.059381]
[1733332266595,1.6605,3777.3,3775.4,1.5773423]
[1733332266885,1.6605,3777.3,3776.0,2.64829]
[1733332267118,1.6474,3777.1,3776.1,0.06053108]
[1733332267309,2.64783,3776.7,3776.1,0.06053108]
[1733332267471,1.84855027,3777.0,3776.1,0.06053108]
[1733332267472,0.03310297,3776.6,3776.1,0.06053108]